fUSD/lending_fUSD_20251120
["ID","MTS","AMOUNT","RATE_DAILY","PERIOD"]
[394515293,1763657433855,-1586.17714727,0.00017811,2]
[394515294,1763657433864,-716.4132656,0.00017814,2]
[394515295,1763657433874,-150.0,0.0001782,2]
[394515296,1763657433884,-3405.23843948,0.00017822,2]
[394515297,1763657433894,-1586.17714727,0.00017822,2]
[394515298,1763657433903,-716.4132656,0.00017829,2]
[394515299,1763657433913,-150.0,0.00017829,2]
[394515300,1763657433922,-3405.23843948,0.00017833,2]
[394515301,1763657433931,-1586.17714727,0.00017833,2]
[394515302,1763657433941,-1630.8453,0.00017836,2]
[394515303,1763657433950,-500.0,0.00017839,2]
[394515304,1763657433962,-500.0,0.00017839,2]
[394515305,1763657433972,-500.0,0.00017839,2]
[394515306,1763657433981,-76.19720756,0.00017839,2]
[394515307,1763657434371,-423.80279244,0.00017839,2]
[394515308,1763657434382,-500.0,0.00017839,2]
[394515309,1763657434392,-500.0,0.00017839,2]
[394515310,1763657434402,-500.0,0.00017839,2]
[394515311,1763657434413,-621.36243505,0.00017839,2]
[394515312,1763657434423,-500.0,0.00017839,2]
[394515313,1763657434433,-500.0,0.00017839,2]
[394515314,1763657434444,-500.0,0.00017839,2]
[394515315,1763657434454,-500.0,0.00017839,2]
[394515316,1763657434469,-716.4132656,0.00017843,2]
[394515317,1763657434480,-3405.23843948,0.00017844,2]
[394515318,1763657434489,-1586.17714727,0.00017844,2]
[394515319,1763657434499,-3405.23843948,0.00017856,2]
[394515320,1763657434509,-1586.17714727,0.00017856,2]
[394515321,1763657434520,-150.0,0.00017856,2]
[394515322,1763657434529,-716.4132656,0.00017857,2]
[394515323,1763657434539,-150.0,0.00017862,2]
[394515324,1763657434548,-1650.22286436,0.00017867,2]
[394515325,1763657434559,-1755.01557512,0.00017867,2]
[394515326,1763657434569,-1095.13442488,0.00017867,2]
[394515327,1763657434585,-491.04272239,0.00017867,2]
[394515328,1763657434595,-716.4132656,0.00017871,2]
[394515329,1763657434605,-567.05277273,0.00017873,2]
[394515330,1763657434614,-500.0,0.00017873,2]
[394515331,1763657434624,-500.49591173,0.00017873,2]
[394515332,1763657434634,-500.0,0.00017873,2]
[394515333,1763657434643,-500.0,0.00017873,2]
[394515334,1763657434653,-500.0,0.00017873,2]
[394515335,1763657434663,-134.65057755,0.00017873,2]
[394515336,1763657434675,-365.34942245,0.00017873,2]
[394515337,1763657434684,-500.0,0.00017873,2]
[394515338,1763657434693,-500.0,0.00017873,2]
[394515339,1763657434702,-500.19159843,0.00017873,2]
[394515340,1763657434714,-500.0,0.00017873,2]
[394515341,1763657434728,-500.0,0.00017873,2]
[394515342,1763657434737,-500.0,0.00017873,2]
[394515343,1763657434747,-325.05031776,0.00017873,2]
[394515344,1763657434756,-500.0,0.00017873,2]
[394515345,1763657434765,-500.0,0.00017873,2]
[394515346,1763657434776,-184.80854603,0.00017873,2]
[394515347,1763657434786,-500.0,0.00017873,2]
[394515348,1763657434796,-162.84797377,0.00017873,2]
[394515349,1763657434806,-500.0,0.00017873,2]
[394515350,1763657434815,-500.0,0.00017873,2]
[394515351,1763657434824,-500.0,0.00017873,2]
[394515352,1763657434834,-500.0,0.00017873,2]
[394515353,1763657434843,-211.24168256,0.00017873,2]
[394515354,1763657434877,-288.75831744,0.00017873,2]
[394515355,1763657434887,-500.0,0.00017873,2]
[394515356,1763657434897,-167.79796351,0.00017873,2]
[394515357,1763657434906,-345.44371905,0.00017873,2]
[394515358,1763657434918,-121.10035462,0.00017873,2]
[394515359,1763657434928,-485.54879562,0.00017873,2]
[394515360,1763657435631,-21.28819478,0.00017873,2]
[394515361,1763657435641,-500.0,0.00017873,2]
[394515362,1763657435652,-500.0,0.00017873,2]
[394515363,1763657435663,-500.0,0.00017873,2]
[394515364,1763657435672,-3405.23843948,0.00017878,2]
[394515365,1763657435684,-1586.17714727,0.00017878,2]
[394515366,1763657435693,-716.4132656,0.00017886,2]
[394515367,1763657435704,-3405.23843948,0.00017889,2]
[394515368,1763657435716,-1586.17714727,0.00017889,2]
[394515369,1763657435725,-150.0,0.00017894,2]
[394515370,1763657435735,-150.0,0.00017894,2]
[394515371,1763657435745,-151.0,0.00017897,2]
[394515372,1763657435754,-151.0,0.00017897,2]
[394515373,1763657435763,-227.83748867,0.00017899,2]
[394515374,1763657435773,-159.48624206,0.00017899,2]
[394515375,1763657435783,-500.0,0.00017899,2]
[394515376,1763657435793,-500.0,0.00017899,2]
[394515377,1763657435802,-500.0,0.00017899,2]
[394515378,1763657435812,-500.0,0.00017899,2]
[394515379,1763657435821,-500.0,0.00017899,2]
[394515380,1763657435830,-500.0,0.00017899,2]
[394515381,1763657435840,-500.0,0.00017899,2]
[394515382,1763657435849,-500.0,0.00017899,2]
[394515383,1763657435858,-500.0,0.00017899,2]
[394515384,1763657435867,-500.0,0.00017899,2]
[394515385,1763657435876,-3560.83146822,0.000179,2]
[394515386,1763657435892,-14251.8,0.000179,2]
[394515387,1763657435913,-4308.48920621,0.000179,2]
[394515388,1763657435925,-3513.98259525,0.000179,2]
[394515389,1763657435937,-703.76457037,0.000179,2]
[394515390,1763657435949,-3021.785382,0.000179,2]
[394515391,1763657435981,-240435.10098163,0.000179,2]
[394515400,1763657438169,-441.31263806,0.000179,2]
[394515401,1763657438181,-29493.14385949,0.000179,2]
[394515402,1763657438231,-702.4423947,0.000179,2]
[394515403,1763657438242,-251.35261343,0.000179,2]
[394515404,1763657438282,-4422.5248374,0.000179,2]
[394515405,1763657438294,-1439.312,0.000179,2]
[394515406,1763657438314,-4206.5670265,0.000179,2]
[394515582,1763657440142,-1530.48767691,0.000179,2]
[394515585,1763657440154,-1461.6230575,0.000179,2]
[394515588,1763657440165,-1323.3102001,0.000179,2]
[394515592,1763657440176,-464.99799998,0.000179,2]
[394515619,1763657440303,-1564.01642771,0.000179,2]
[394515622,1763657440314,-393.75864082,0.000179,2]
[394515625,1763657440325,-70209.22121103,0.000179,2]
[394515629,1763657440341,-1678.4,0.000179,2]
[394515680,1763657440590,-4160.5704,0.000179,2]
[394515683,1763657440601,-2665.2151648,0.000179,2]
[394515686,1763657440611,-4417.87165116,0.000179,2]
[394515690,1763657440622,-1321.3199994,0.000179,2]
[394515694,1763657440633,-8856.3,0.000179,2]
[394515705,1763657440681,-10774.63226419,0.000179,2]
[394515712,1763657440716,-1767.30000001,0.000179,2]
[394515717,1763657440727,-1590.08808336,0.000179,2]
[394515720,1763657440738,-1449.495,0.000179,2]
[394515722,1763657440749,-17626.48992,0.000179,2]
[394515756,1763657441127,-7904.34260535,0.000179,2]
[394515836,1763657443936,-881.0,0.000179,2]
[394515838,1763657444791,-131221.17645066,0.000179,2]
[394515839,1763657444803,-2203.85,0.000179,2]
[394515840,1763657444851,-1685.46251113,0.000179,2]
[394515841,1763657444862,-465.46500326,0.000179,2]
[394515842,1763657444873,-33030.17505056,0.000179,2]
[394515843,1763657444909,-32321.01241383,0.000179,2]
[394515851,1763657446503,-576.75853797,0.000179,2]
[394515852,1763657446517,-1124.00175,0.000179,2]
[394515853,1763657446556,-1231.09407995,0.000179,2]
[394515854,1763657446568,-683.60197392,0.000179,2]
[394515855,1763657446604,-791.07285415,0.000179,2]
[394515856,1763657446667,-6965.47770415,0.000179,2]
[394515857,1763657446680,-1093.2250025,0.000179,2]
[394515874,1763657459084,-153.53,0.0002489,120]
[394515907,1763657548249,548.49097859,0.00018,30]
[394515908,1763657548680,500.0,0.00018,30]
[394515909,1763657549019,500.0,0.00018,30]
[394515910,1763657549888,500.0,0.00017,30]
[394515911,1763657553551,500.0,0.00018,30]
[394515912,1763657554118,500.0,0.00018,30]
[394515913,1763657554550,500.0,0.00018,30]
[394515914,1763657554746,500.0,0.00017,30]
[394515915,1763657555091,500.0,0.00017,30]
[394515916,1763657555629,500.0,0.00018,30]
[394515917,1763657555872,500.0,0.00018,30]
[394515929,1763657824534,271.74780817,0.000179,120]
[394515930,1763657835238,439.32149803,0.00018,30]
[394515931,1763657835805,500.0,0.00018,30]
[394515932,1763657836007,807.93215001,0.00017,30]
[394515933,1763657840728,500.0,0.00018,30]
[394515934,1763657850319,500.0,0.00018,30]
[394515935,1763657850690,500.0,0.00018,30]
[394515936,1763657851096,500.0,0.00018,30]
[394515937,1763657851423,500.0,0.00018,30]
[394515938,1763657851799,500.0,0.00018,30]
[394515939,1763657852168,500.0,0.00017,30]
[394515940,1763657852494,500.0,0.00017,30]
[394515941,1763657852858,500.0,0.00017,30]
[394515942,1763657853241,500.0,0.00017,30]
[394515944,1763658067158,500.0,0.00019178,30]
[394515945,1763658067627,500.0,0.00019178,30]
[394515946,1763658068166,500.0,0.00019178,30]
[394515947,1763658068634,500.0,0.00019178,30]
[394515948,1763658069227,500.0,0.00019178,30]
[394515949,1763658069626,500.0,0.00019178,30]
[394515950,1763658070120,500.0,0.00019178,30]
[394515951,1763658070609,500.0,0.00019178,30]
[394515952,1763658071466,500.0,0.00019178,30]
[394515953,1763658071960,374.28746056,0.00019178,30]
[394515954,1763658072520,200.0,0.00016125,2]
[394515955,1763658079576,-500.0,0.00016418,2]
[394515956,1763658079599,-500.0,0.00016438,2]
[394515957,1763658079620,-300.0,0.00016449,2]
[394515958,1763658079641,-250.0,0.00016481,2]
[394515959,1763658080494,450.0,0.00016338,2]
[394515971,1763658083619,-401.81681194,0.00016338,2]
[394515985,1763658092429,-176.73782147,0.00016573,2]
[394515986,1763658092451,-300.0,0.00016599,2]
[394515987,1763658092480,-1523.26217853,0.000166,2]
[394515988,1763658182512,10000.01,0.00016347,2]
[394515989,1763658182536,1598.18318806,0.00016347,2]
[394515995,1763658234935,172.07,8.081e-05,2]
[394515996,1763658235179,172.07,8.507e-05,2]
[394515997,1763658235401,172.07,8.932e-05,2]
[394515998,1763658235617,172.07,9.357e-05,2]
[394515999,1763658235845,172.07,9.783e-05,2]
[394516000,1763658236038,172.07,0.00010208,2]
[394516001,1763658236267,172.07,0.00010633,2]
[394516002,1763658236495,172.07,0.00011058,2]
[394516003,1763658236710,172.07,0.00011484,2]
[394516004,1763658236959,172.07,0.00011909,2]
[394516006,1763658237285,172.07,0.00012334,2]
[394516007,1763658237508,172.07,0.0001276,2]
[394516008,1763658237717,172.07,0.00013185,2]
[394516009,1763658238164,172.07,0.0001361,2]
[394516010,1763658238516,172.07,0.00014036,2]
[394516011,1763658238742,172.07,0.00014461,2]
[394516012,1763658239003,172.07,0.00014886,2]
[394516013,1763658239226,172.07,0.00015312,2]
[394516014,1763658239629,172.07,0.00015737,2]
[394516015,1763658239690,172.07,0.00016162,2]
[394516019,1763658272084,1000.0,0.00016059,2]
[394516020,1763658500142,2751.0,0.00015858,2]
[394516021,1763658518867,1292.2,0.00015888,2]
[394516080,1763658568818,176.73782147,0.000161,2]
[394516082,1763658608907,1440.40709561,0.00016173,2]
[394516101,1763658631368,-1200.0,0.00016199,2]
[394516103,1763658631377,-300.0,0.00016199,2]
[394516104,1763658631386,-261.76,0.00016199,2]
[394516105,1763658631426,-938.24,0.00016199,2]
[394516106,1763658631435,-300.0,0.00016199,2]
[394516107,1763658631445,-260.95770001,0.00016199,2]
[394516108,1763658631456,-39.04229999,0.00016199,2]
[394516109,1763658631465,-150.0,0.000162,2]
[394516110,1763658631475,-150.0,0.000162,2]
[394516111,1763658631484,-184.3882449,0.000162,2]
[394516112,1763658631493,-150.0,0.000162,2]
[394516113,1763658631502,-208.5334281,0.000162,2]
[394516114,1763658631511,-150.0,0.000162,2]
[394516115,1763658631521,-150.0,0.000162,2]
[394516116,1763658631530,-150.0,0.000162,2]
[394516117,1763658631539,-150.0,0.000162,2]
[394516118,1763658631548,-195.48403629,0.000162,2]
[394516119,1763658631557,-150.0,0.000162,2]
[394516120,1763658631566,-245.97209231,0.000162,2]
[394516121,1763658631576,-150.0,0.000162,2]
[394516122,1763658631585,-150.0,0.000162,2]
[394516123,1763658631594,-150.0,0.000162,2]
[394516124,1763658631603,-151.0,0.00016244,2]
[394516125,1763658631612,-381.0,0.00016246,2]
[394516126,1763658631621,-4991.37124212,0.00016247,2]
[394516127,1763658631682,-1663.64,0.00016247,2]
[394516128,1763658631695,-13661.16188987,0.00016247,2]
[394516145,1763658637374,-598.77021601,0.00016246,2]
[394516146,1763658637384,-263.35766843,0.00016246,2]
[394516148,1763658637393,-557.48703647,0.00016246,2]
[394516150,1763658637402,-500.0,0.00016246,2]
[394516151,1763658637414,-500.0,0.00016246,2]
[394516152,1763658637427,-500.0,0.00016246,2]
[394516153,1763658637436,-366.63173989,0.00016246,2]
[394516154,1763658637445,-500.0,0.00016246,2]
[394516155,1763658637454,-500.0,0.00016246,2]
[394516156,1763658637463,-500.0,0.00016246,2]
[394516157,1763658637473,-500.0,0.00016246,2]
[394516158,1763658637482,-500.0,0.00016246,2]
[394516159,1763658637491,-500.0,0.00016246,2]
[394516160,1763658637500,-500.0,0.00016246,2]
[394516161,1763658637510,-500.0,0.00016246,2]
[394516162,1763658637520,-500.0,0.00016246,2]
[394516163,1763658637529,-500.0,0.00016246,2]
[394516164,1763658637538,-233.75333919,0.00016246,2]
[394516165,1763658637550,-266.24666081,0.00016246,2]
[394516166,1763658637559,-500.0,0.00016246,2]
[394516167,1763658637568,-500.0,0.00016246,2]
[394516168,1763658637578,-500.0,0.00016246,2]
[394516169,1763658637587,-500.0,0.00016246,2]
[394516170,1763658637597,-500.0,0.00016246,2]
[394516171,1763658637607,-500.0,0.00016246,2]
[394516172,1763658637616,-500.0,0.00016246,2]
[394516173,1763658637626,-500.0,0.00016246,2]
[394516174,1763658637635,-500.0,0.00016246,2]
[394516175,1763658637644,-500.0,0.00016246,2]
[394516176,1763658637657,-42641.36642569,0.00016247,2]
[394516177,1763658637670,-19999.9993,0.00016247,2]
[394516178,1763658637681,-87500.0,0.00016247,2]
[394516179,1763658637695,-468.35889906,0.00016247,2]
[394516180,1763658637709,-475.39842226,0.00016247,2]
[394516181,1763658637724,-520.1451906,0.00016247,2]
[394516218,1763658639422,-4403.52,0.00016247,2]
[394516222,1763658639454,-272.91205613,0.00016247,2]
[394516256,1763658639776,-1054.36110755,0.00016247,2]
[394516265,1763658639850,-2864.78524466,0.00016247,2]
[394516267,1763658639861,-3512.0,0.00016247,2]
[394516269,1763658639871,-400.400011,0.00016247,2]
[394516271,1763658639883,-17572.24656,0.00016247,2]
[394516272,1763658639893,-2641.06914591,0.00016247,2]
[394516273,1763658639905,-195369.9535372,0.00016247,2]
[394516274,1763658639915,-1295.15944958,0.00016247,2]
[394516275,1763658639928,-1099.96406077,0.00016247,2]
[394516276,1763658639939,-3401.4693576,0.00016247,2]
[394516277,1763658639947,-160.5306224,0.00016273,2]
[394516309,1763658643991,-339.4693776,0.00016273,2]
[394516310,1763658644000,-500.0,0.00016273,2]
[394516311,1763658644010,-184.18282033,0.00016273,2]
[394516312,1763658644019,-343.44455927,0.00016273,2]
[394516313,1763658644029,-500.0,0.00016273,2]
[394516314,1763658644038,-616.01308641,0.00016273,2]
[394516315,1763658644047,-500.0,0.00016273,2]
[394516316,1763658644057,-3589.96515639,0.00016289,2]
[394516317,1763658644448,-14.01399627,0.00016289,2]
[394516318,1763658644460,-7360.88084734,0.00016289,2]
[394516319,1763658644469,-12639.11915266,0.00016347,2]
[394516320,1763658644481,-2640.0,0.00016347,2]
[394516321,1763658644513,-4403.52,0.00016347,2]
[394516357,1763658645625,-508.10303544,0.00016347,2]
[394516363,1763658647371,-684.39999965,0.00016347,2]
[394516364,1763658647382,-877.9225576,0.00016347,2]
[394516365,1763658647404,-30006.67206659,0.00016347,2]
[394516366,1763658647414,-1440.40709554,0.00016365,2]
[394516367,1763658647429,-387.71793987,0.00016373,2]
[394516370,1763658726374,207.41370764,0.0001616,2]
[394516372,1763658748083,402.6097,0.000161,2]
[394516373,1763658803977,1465.32917426,0.0001616,2]
[394516374,1763658831405,265.21007886,0.00016157,2]
[394516375,1763658855969,1000.0,0.0001616,2]
[394516376,1763658856699,207.41370764,0.0001616,2]
[394516377,1763658892723,33186.8393,0.0001616,2]
[394516389,1763658915690,168.27075554,0.00016157,2]
[394516400,1763658976116,-756.76,0.00016237,3]
[394516401,1763658976137,-151.0,0.00016244,2]
[394516402,1763658976157,-151.0,0.00016244,2]
[394516403,1763658976177,-550.0,0.00016245,2]
[394516404,1763658976203,-300.0,0.00016245,2]
[394516405,1763658976223,-91.24,0.00016245,2]
[394516406,1763658977879,-208.76,0.00016245,2]
[394516407,1763658977900,-1200.0,0.00016245,2]
[394516408,1763658977925,-500.0,0.00016246,2]
[394516409,1763658977953,-91.24,0.00016246,2]
[394516410,1763658985619,33346.6032,0.0001616,2]
[394516411,1763658990338,2117.74467911,0.00016157,2]
[394516412,1763659154440,33346.6032,0.00016147,2]
[394516413,1763659166740,238.68907101,0.00016159,2]
[394516414,1763659179207,976.4099021,0.0001616,2]
[394516425,1763659218415,1000.0,0.00016147,2]
[394516428,1763659223368,-163.62,0.0002,14]
[394516429,1763659236513,2500.0,0.00016147,2]
[394516462,1763659293582,2909.169,0.00015922,2]
[394516463,1763659293624,169.786,0.00015922,2]
[394516464,1763659314226,1318.79625678,0.00016159,2]
[394516466,1763659324735,395.1417,0.00016147,2]
[394516475,1763659334393,-150.0,0.00017999,5]
[394516484,1763659376927,2643.51536139,0.00016159,2]
[394516485,1763659388438,1000.0,0.00016147,2]
[394516597,1763659500620,351.63585083,0.00016146,2]
[394516598,1763659502082,301.11757451,0.00016158,2]
[394516600,1763659513761,1459.59674552,0.00022,30]
[394516615,1763659526487,34280.68,0.000155,2]
[394516616,1763659536485,1000.0,0.00016147,2]
[394516617,1763659561029,168.27075552,0.00016158,2]
[394516618,1763659581468,200.0,0.00015475,2]
[394516652,1763659616987,167.37962359,0.0001616,2]
[394516653,1763659625989,222.41932101,0.00016168,2]
[394516654,1763659631972,205.0,9.8e-05,2]
[394516655,1763659636240,258.15622711,0.000101,2]
[394516659,1763659688250,72556.8,0.00015471,2]
[394516660,1763659689235,10857.35803616,0.00016147,2]
[394516661,1763659689274,749142.64196384,0.00016147,2]
[394516670,1763659705346,1000.0,0.00016147,2]
[394516685,1763659714322,777.35,0.00013699,2]
[394516772,1763659763015,9074.78185688,0.00016162,2]
[394516840,1763659791309,508.51899884,0.00016144,2]
[394516844,1763659813087,-300.0,0.00016199,2]
[394516845,1763659813114,-43.46759304,0.00016199,2]
[394516847,1763659816679,-154.84144416,0.00016199,2]
[394516849,1763659818313,7949.90465681,0.000161,2]
[394516865,1763659824419,8005.42673045,0.0001616,2]
[394516900,1763659831605,-873.94580296,0.00016199,2]
[394516903,1763659831620,-127.74515984,0.00016199,2]
[394516905,1763659831629,-145.25484006,0.00016199,2]
[394516912,1763659831802,-154.74515994,0.00016199,2]
[394516913,1763659831811,-103.13080975,0.000162,2]
[394516914,1763659831822,-46.86919025,0.000162,2]
[394516915,1763659831835,-150.0,0.000162,2]
[394516916,1763659831845,-150.0,0.000162,2]
[394516917,1763659831854,-150.0,0.000162,2]
[394516918,1763659831864,-45.53218371,0.000162,2]
[394516919,1763659831880,-104.46781629,0.000162,2]
[394516920,1763659831890,-150.0,0.000162,2]
[394516921,1763659831900,-150.0,0.000162,2]
[394516922,1763659831910,-150.0,0.000162,2]
[394516923,1763659831920,-150.0,0.000162,2]
[394516924,1763659831930,-150.00000001,0.000162,2]
[394516925,1763659831940,-150.0,0.000162,2]
[394516926,1763659831951,-150.0,0.000162,2]
[394516927,1763659831962,-150.0,0.000162,2]
[394516928,1763659831972,-445.7521837,0.00016225,2]
[394516930,1763659831989,-305.62343923,0.00016225,2]
[394516931,1763659832002,-650.55767764,0.00016225,2]
[394516932,1763659832012,-195.12518252,0.00016244,2]
[394516933,1763659832022,-27.86713984,0.00016245,2]
[394516934,1763659832034,-222.13286016,0.00016245,2]
[394516935,1763659832043,-1092.88987372,0.00016246,2]
[394516936,1763659832057,-379.37,0.00016247,2]
[394516937,1763659832067,-113.81186668,0.00016247,2]
[394516938,1763659832079,-386.18813332,0.00016247,2]
[394516939,1763659832094,-500.0,0.00016247,2]
[394516940,1763659832103,-500.0,0.00016247,2]
[394516941,1763659832113,-500.0,0.00016247,2]
[394516942,1763659832122,-500.0,0.00016247,2]
[394516943,1763659832131,-500.0,0.00016247,2]
[394516944,1763659832140,-527.02812988,0.00016247,2]
[394516945,1763659832151,-500.0,0.00016247,2]
[394516946,1763659832161,-500.0,0.00016247,2]
[394516947,1763659832172,-500.0,0.00016247,2]
[394516948,1763659832182,-500.0,0.00016247,2]
[394516949,1763659832191,-551.84940414,0.00016247,2]
[394516950,1763659832200,-500.0,0.00016247,2]
[394516951,1763659832210,-500.0,0.00016247,2]
[394516952,1763659832220,-500.0,0.00016247,2]
[394516953,1763659832231,-500.0,0.00016247,2]
[394516954,1763659832240,-500.0,0.00016247,2]
[394516955,1763659832250,-222.71340173,0.00016247,2]
[394516956,1763659832259,-500.0,0.00016247,2]
[394516957,1763659832269,-500.0,0.00016247,2]
[394516958,1763659832278,-411.7374563,0.00016247,2]
[394516959,1763659832288,-536.54,0.00016247,2]
[394516960,1763659832298,-536.54,0.00016247,2]
[394516961,1763659832307,-536.54,0.00016247,2]
[394516962,1763659832317,-156.36,0.00016258,2]
[394516963,1763659832327,-151.0,0.00016259,2]
[394516964,1763659832340,-190.13197896,0.00016259,2]
[394516965,1763659832350,-500.0,0.00016259,2]
[394516966,1763659832359,-372.42597521,0.00016259,2]
[394516967,1763659832369,-634.59256275,0.00016259,2]
[394516968,1763659832379,-536.54,0.00016259,2]
[394516969,1763659832388,-500.0,0.00016259,2]
[394516970,1763659832398,-500.0,0.00016259,2]
[394516971,1763659832408,-500.0,0.00016259,2]
[394516972,1763659832417,-500.0,0.00016259,2]
[394516973,1763659832427,-500.0,0.00016259,2]
[394516974,1763659832436,-500.0,0.00016259,2]
[394516975,1763659832446,-500.0,0.00016259,2]
[394516976,1763659832456,-500.0,0.00016259,2]
[394516977,1763659832465,-500.0,0.00016259,2]
[394516978,1763659832475,-493.15818736,0.00016259,2]
[394516979,1763659832484,-500.0,0.00016259,2]
[394516980,1763659832493,-500.0,0.00016259,2]
[394516981,1763659832503,-500.0,0.00016259,2]
[394516982,1763659832512,-500.0,0.00016259,2]
[394516983,1763659832521,-500.0,0.00016259,2]
[394516984,1763659832531,-500.0,0.00016259,2]
[394516985,1763659832540,-500.0,0.00016259,2]
[394516986,1763659832549,-500.0,0.00016259,2]
[394516987,1763659832559,-500.0,0.00016259,2]
[394516988,1763659832568,-500.0,0.00016259,2]
[394516989,1763659832577,-500.0,0.00016259,2]
[394516990,1763659832590,-500.0,0.00016259,2]
[394516991,1763659832599,-500.0,0.00016259,2]
[394516992,1763659832609,-500.0,0.00016259,2]
[394516993,1763659832619,-500.0,0.00016259,2]
[394516994,1763659832628,-136840.73620308,0.0001626,2]
[394516995,1763659832641,-9929.38976545,0.0001626,2]
[394516996,1763659832652,-90588.14240307,0.0001626,2]
[394516997,1763659832664,-3116.81537388,0.0001626,2]
[394516998,1763659832675,-536.36566967,0.0001626,2]
[394516999,1763659832688,-10005.24525,0.0001626,2]
[394517000,1763659832699,-368.57132559,0.0001626,2]
[394517026,1763659837285,-4502.90830225,0.0001626,2]
[394517027,1763659837298,-342.32659662,0.0001626,2]
[394517028,1763659837311,-4243.32435768,0.0001626,2]
[394517051,1763659837573,-343.56386327,0.0001626,2]
[394517055,1763659837648,-409.56709144,0.0001626,2]
[394517056,1763659837658,-484.70179106,0.0001626,2]
[394517058,1763659837669,-5030.78232274,0.0001626,2]
[394517060,1763659837679,-22495.42961972,0.0001626,2]
[394517062,1763659837690,-371.9382357,0.0001626,2]
[394517064,1763659837702,-2432.9842022,0.0001626,2]
[394517066,1763659837800,-5717.90920731,0.0001626,2]
[394517069,1763659837815,-272.19787025,0.0001626,2]
[394517082,1763659837942,304.97338638,0.00016162,2]
[394517162,1763659839598,-3266.58990813,0.0001626,2]
[394517163,1763659839610,-302.55286,0.0001626,2]
[394517164,1763659839624,-1328.40896777,0.0001626,2]
[394517165,1763659839648,-395.34538112,0.0001626,2]
[394517166,1763659839670,-375.62130866,0.0001626,2]
[394517168,1763659839688,-6520.2,0.0001626,2]
[394517169,1763659839729,-3630.98512554,0.0001626,2]
[394517170,1763659839739,-9441.51487446,0.00016262,2]
[394517172,1763659839842,-949.82197031,0.00016262,2]
[394517174,1763659839912,-4353.48,0.00016262,2]
[394517175,1763659839952,-2181.68091002,0.00016262,2]
[394517202,1763659843263,-6830.4830715,0.00016262,2]
[394517205,1763659843966,-362.60536559,0.00016262,2]
[394517206,1763659844020,-4353.48,0.00016262,2]
[394517207,1763659844076,-70243.69282515,0.00016262,2]
[394517208,1763659844134,-11811.68042376,0.00016262,2]
[394517210,1763659844145,-4350.0,0.00016262,2]
[394517445,1763659848009,-280.15859347,0.00016262,2]
[394517446,1763659848173,-524.10225387,0.00016262,2]
[394517447,1763659848184,-4530.43257819,0.00016262,2]
[394517448,1763659848230,-17804.09783548,0.00016262,2]
[394517449,1763659848240,-9729.71,0.00016262,2]
[394517450,1763659848252,-9999.99,0.00016262,2]
[394517451,1763659848262,-1430.03,0.00016262,2]
[394517452,1763659848271,-9999.99,0.00016262,2]
[394517453,1763659848281,-1672.9,0.00016262,2]
[394517454,1763659848290,-3790.47,0.00016262,2]
[394517455,1763659848300,-499.99,0.00016262,2]
[394517456,1763659848309,-999.99,0.00016262,2]
[394517457,1763659848319,-900.61,0.00016262,2]
[394517458,1763659848328,-950.26,0.00016262,2]
[394517459,1763659848338,-9999.99,0.00016262,2]
[394517460,1763659848348,-9999.99,0.00016262,2]
[394517462,1763659848357,-75829.44,0.00016262,2]